[Event "Titled Tuesday Blitz December 7 2021"]
[White "Santos Flores, Alberto"]
[Black "Kim, Sergey"]
[WhiteFideId "3601234"]
[BlackFideId "13700570"]
[WhiteElo "2293"]
[BlackElo "2583"]
[Result "1/2-1/2"]
[Round "09"]
[TimeControl "180+1"]
[Date "2021.12.07"]
[WhiteClock "0:00:14"]
[BlackClock "0:00:17"]

1. e4 {[%clk 0:03:00]}  e5 {[%clk 0:02:59]} 2. Nf3 {[%clk 0:03:00]}  Nc6 {[%clk 0:03:00]} 3. Bc4 {[%clk 0:03:00]}  Bc5 {[%clk 0:02:59]} 4. c3 {[%clk 0:02:59]}  Nf6 {[%clk 0:02:59]} 5. d3 {[%clk 0:03:00]}  d6 {[%clk 0:02:59]} 6. O-O {[%clk 0:02:59]}  a6 {[%clk 0:02:59]} 7. a4 {[%clk 0:02:57]}  Ba7 {[%clk 0:02:59]} 8. Nbd2 {[%clk 0:02:54]}  O-O {[%clk 0:02:58]} 9. h3 {[%clk 0:02:47]}  Be6 {[%clk 0:02:53]} 10. Re1 {[%clk 0:02:44]}  h6 {[%clk 0:02:45]} 11. Ba2 {[%clk 0:02:42]}  Bxa2 {[%clk 0:02:41]} 12. Rxa2 {[%clk 0:02:42]}  Nh5 {[%clk 0:02:41]} 13. Nf1 {[%clk 0:02:41]}  Qf6 {[%clk 0:02:40]} 14. Be3 {[%clk 0:02:37]}  Nf4 {[%clk 0:02:38]} 15. Bxf4 {[%clk 0:02:21]}  Qxf4 {[%clk 0:02:36]} 16. Qd2 {[%clk 0:02:16]}  Qf6 {[%clk 0:02:36]} 17. Ng3 {[%clk 0:02:13]}  Ne7 {[%clk 0:02:33]} 18. b4 {[%clk 0:02:10]}  Ng6 {[%clk 0:02:25]} 19. Nf5 {[%clk 0:01:55]}  Nf4 {[%clk 0:02:23]} 20. Kh2 {[%clk 0:01:53]}  Kh7 {[%clk 0:02:22]} 21. g3 {[%clk 0:01:53]}  Ne6 {[%clk 0:02:18]} 22. Kg2 {[%clk 0:01:47]}  Rad8 {[%clk 0:02:10]} 23. d4 {[%clk 0:01:37]}  Rfe8 {[%clk 0:02:04]} 24. d5 {[%clk 0:01:33]}  Nf8 {[%clk 0:02:02]} 25. c4 {[%clk 0:01:27]}  c6 {[%clk 0:01:56]} 26. Rc2 {[%clk 0:01:23]}  Ng6 {[%clk 0:01:48]} 27. h4 {[%clk 0:01:10]}  Kg8 {[%clk 0:01:43]} 28. h5 {[%clk 0:01:07]}  Ne7 {[%clk 0:01:42]} 29. N3h4 {[%clk 0:01:04]}  Kh7 {[%clk 0:01:30]} 30. Nxe7 {[%clk 0:01:03]}  Rxe7 {[%clk 0:01:29]} 31. Nf5 {[%clk 0:01:03]}  Ree8 {[%clk 0:01:29]} 32. b5 {[%clk 0:00:58]}  cxb5 {[%clk 0:01:20]} 33. axb5 {[%clk 0:00:59]}  Bc5 {[%clk 0:01:19]} 34. bxa6 {[%clk 0:00:56]}  bxa6 {[%clk 0:01:20]} 35. Ra2 {[%clk 0:00:55]}  Ra8 {[%clk 0:01:16]} 36. Rea1 {[%clk 0:00:55]}  Reb8 {[%clk 0:01:08]} 37. Rxa6 {[%clk 0:00:54]}  Rxa6 {[%clk 0:01:07]} 38. Rxa6 {[%clk 0:00:55]}  Rb4 {[%clk 0:01:03]} 39. Qa2 {[%clk 0:00:45]}  g6 {[%clk 0:01:00]} 40. hxg6+ {[%clk 0:00:43]}  Qxg6 {[%clk 0:00:59]} 41. Ra8 {[%clk 0:00:40]}  Qg4 {[%clk 0:00:57]} 42. Qc2 {[%clk 0:00:37]}  Rb7 {[%clk 0:00:39]} 43. Rd8 {[%clk 0:00:35]}  Rb6 {[%clk 0:00:34]} 44. Rd7 {[%clk 0:00:30]}  Kg8 {[%clk 0:00:30]} 45. Rd8+ {[%clk 0:00:30]}  Kh7 {[%clk 0:00:29]} 46. Qd3 {[%clk 0:00:26]}  Rb2 {[%clk 0:00:27]} 47. Ne3 {[%clk 0:00:24]}  Qg5 {[%clk 0:00:26]} 48. Rd7 {[%clk 0:00:23]}  Bxe3 {[%clk 0:00:24]} 49. Rxf7+ {[%clk 0:00:23]}  Kg8 {[%clk 0:00:24]} 50. Rf5 {[%clk 0:00:24]}  Rxf2+ {[%clk 0:00:22]} 51. Rxf2 {[%clk 0:00:22]}  Bxf2 {[%clk 0:00:21]} 52. Kxf2 {[%clk 0:00:23]}  Qf6+ {[%clk 0:00:21]} 53. Qf3 {[%clk 0:00:23]}  Qd8 {[%clk 0:00:20]} 54. Qf5 {[%clk 0:00:22]}  Qb6+ {[%clk 0:00:20]} 55. Kf3 {[%clk 0:00:23]}  Qb3+ {[%clk 0:00:20]} 56. Kg4 {[%clk 0:00:23]}  Qd1+ {[%clk 0:00:20]} 57. Qf3 {[%clk 0:00:21]}  Qd4 {[%clk 0:00:20]} 58. Kf5 {[%clk 0:00:21]}  Qxc4 {[%clk 0:00:19]} 59. Qg4+ {[%clk 0:00:21]}  Kf8 {[%clk 0:00:19]} 60. Qg6 {[%clk 0:00:20]}  Qc8+ {[%clk 0:00:19]} 61. Kf6 {[%clk 0:00:20]}  Qd8+ {[%clk 0:00:18]} 62. Ke6 {[%clk 0:00:20]}  Qe7+ {[%clk 0:00:19]} 63. Kf5 {[%clk 0:00:20]}  Qd7+ {[%clk 0:00:18]} 64. Qe6 {[%clk 0:00:20]}  Qh7+ {[%clk 0:00:18]} 65. Qg6 {[%clk 0:00:20]}  Qd7+ {[%clk 0:00:18]} 66. Qe6 {[%clk 0:00:17]}  Qh7+ {[%clk 0:00:17]} 67. Qg6 {[%clk 0:00:14]}  Qd7+ {[%clk 0:00:17]} 1/2-1/2


[Site "https://www.chess.com"]

[Event "Titled Tuesday Blitz December 7 2021"]
[White "Savchenko, Boris"]
[Black "Leitao, Rafael"]
[WhiteFideId "4147332"]
[BlackFideId "2101246"]
[WhiteElo "2499"]
[BlackElo "2609"]
[Result "1-0"]
[Round "09"]
[TimeControl "180+1"]
[Date "2021.12.07"]
[WhiteClock "0:00:12"]
[BlackClock "0:00:10"]

1. e4 {[%clk 0:02:16]}  e5 {[%clk 0:02:58]} 2. Nf3 {[%clk 0:02:16]}  Nc6 {[%clk 0:02:58]} 3. Bc4 {[%clk 0:02:16]}  Nf6 {[%clk 0:02:58]} 4. d3 {[%clk 0:02:17]}  h6 {[%clk 0:02:56]} 5. c3 {[%clk 0:02:16]}  d6 {[%clk 0:02:56]} 6. Nbd2 {[%clk 0:02:15]}  g6 {[%clk 0:02:56]} 7. Nf1 {[%clk 0:02:15]}  Bg7 {[%clk 0:02:56]} 8. Ng3 {[%clk 0:02:15]}  O-O {[%clk 0:02:56]} 9. O-O {[%clk 0:02:15]}  d5 {[%clk 0:02:53]} 10. exd5 {[%clk 0:02:15]}  Nxd5 {[%clk 0:02:53]} 11. Re1 {[%clk 0:02:16]}  a6 {[%clk 0:02:36]} 12. a4 {[%clk 0:02:14]}  Be6 {[%clk 0:02:31]} 13. a5 {[%clk 0:02:12]}  Nf4 {[%clk 0:02:14]} 14. Bxf4 {[%clk 0:02:10]}  exf4 {[%clk 0:02:08]} 15. Bxe6 {[%clk 0:02:04]}  fxg3 {[%clk 0:02:06]} 16. Bc4 {[%clk 0:01:54]}  gxf2+ {[%clk 0:02:04]} 17. Kxf2 {[%clk 0:01:55]}  Ne5 {[%clk 0:01:37]} 18. Rxe5 {[%clk 0:01:54]}  Bxe5 {[%clk 0:01:30]} 19. Nxe5 {[%clk 0:01:55]}  Qf6+ {[%clk 0:01:29]} 20. Nf3 {[%clk 0:01:55]}  Rae8 {[%clk 0:01:24]} 21. h3 {[%clk 0:01:53]}  g5 {[%clk 0:01:22]} 22. Qd2 {[%clk 0:01:51]}  Kg7 {[%clk 0:01:19]} 23. Kg1 {[%clk 0:01:47]}  Qd6 {[%clk 0:01:18]} 24. d4 {[%clk 0:01:42]}  f6 {[%clk 0:01:08]} 25. b4 {[%clk 0:01:30]}  Re7 {[%clk 0:01:06]} 26. Re1 {[%clk 0:01:29]}  Rfe8 {[%clk 0:01:02]} 27. Rxe7+ {[%clk 0:01:28]}  Qxe7 {[%clk 0:01:02]} 28. Bd3 {[%clk 0:01:25]}  Qe3+ {[%clk 0:01:01]} 29. Kf1 {[%clk 0:01:21]}  Qxd2 {[%clk 0:00:58]} 30. Nxd2 {[%clk 0:01:22]}  Re3 {[%clk 0:00:58]} 31. Be4 {[%clk 0:01:22]}  c6 {[%clk 0:00:43]} 32. c4 {[%clk 0:01:19]}  h5 {[%clk 0:00:24]} 33. Kf2 {[%clk 0:00:14]}  Rc3 {[%clk 0:00:23]} 34. c5 {[%clk 0:00:14]}  g4 {[%clk 0:00:21]} 35. hxg4 {[%clk 0:00:14]}  hxg4 {[%clk 0:00:21]} 36. Ke2 {[%clk 0:00:15]}  Kf8 {[%clk 0:00:17]} 37. d5 {[%clk 0:00:15]}  f5 {[%clk 0:00:17]} 38. dxc6 {[%clk 0:00:14]}  bxc6 {[%clk 0:00:18]} 39. Bxc6 {[%clk 0:00:14]}  Ke7 {[%clk 0:00:18]} 40. Bb7 {[%clk 0:00:14]}  f4 {[%clk 0:00:18]} 41. Bxa6 {[%clk 0:00:14]}  Re3+ {[%clk 0:00:18]} 42. Kd1 {[%clk 0:00:14]}  f3 {[%clk 0:00:18]} 43. gxf3 {[%clk 0:00:13]}  g3 {[%clk 0:00:18]} 44. Bf1 {[%clk 0:00:14]}  Ra3 {[%clk 0:00:16]} 45. f4 {[%clk 0:00:14]}  Ra1+ {[%clk 0:00:12]} 46. Ke2 {[%clk 0:00:13]}  Ra2 {[%clk 0:00:13]} 47. b5 {[%clk 0:00:13]}  Rxa5 {[%clk 0:00:12]} 48. Kf3 {[%clk 0:00:13]}  Ra2 {[%clk 0:00:11]} 49. Ne4 {[%clk 0:00:13]}  Ra3+ {[%clk 0:00:11]} 50. Kg2 {[%clk 0:00:12]}  Re3 {[%clk 0:00:11]} 51. Nxg3 {[%clk 0:00:13]}  Rc3 {[%clk 0:00:10]} 52. c6 {[%clk 0:00:12]} 1-0


[Site "https://www.chess.com"]

[Event "Titled Tuesday Blitz December 7 2021"]
[White "Seletsky, Grigory"]
[Black "Barria Zuniga, Daniel"]
[WhiteFideId "14112191"]
[BlackFideId "3400816"]
[WhiteElo "2492"]
[BlackElo "2414"]
[Result "1/2-1/2"]
[Round "09"]
[TimeControl "180+1"]
[Date "2021.12.07"]
[WhiteClock "0:00:33"]
[BlackClock "0:00:09"]

1. e4 {[%clk 0:02:58]}  g6 {[%clk 0:02:58]} 2. d4 {[%clk 0:02:57]}  Bg7 {[%clk 0:02:59]} 3. Nc3 {[%clk 0:02:57]}  c5 {[%clk 0:02:59]} 4. d5 {[%clk 0:02:54]}  d6 {[%clk 0:02:58]} 5. Bb5+ {[%clk 0:02:53]}  Bd7 {[%clk 0:02:58]} 6. a4 {[%clk 0:02:53]}  Bxb5 {[%clk 0:02:58]} 7. axb5 {[%clk 0:02:52]}  Nf6 {[%clk 0:02:57]} 8. Nf3 {[%clk 0:02:50]}  O-O {[%clk 0:02:58]} 9. O-O {[%clk 0:02:49]}  Nbd7 {[%clk 0:02:57]} 10. h3 {[%clk 0:02:48]}  Nb6 {[%clk 0:02:58]} 11. Re1 {[%clk 0:02:47]}  Ne8 {[%clk 0:02:58]} 12. Bf4 {[%clk 0:02:44]}  Nc7 {[%clk 0:02:58]} 13. Qd3 {[%clk 0:02:43]}  Qd7 {[%clk 0:02:54]} 14. Rab1 {[%clk 0:02:37]}  c4 {[%clk 0:02:53]} 15. Qd2 {[%clk 0:02:36]}  Nxb5 {[%clk 0:02:53]} 16. Nxb5 {[%clk 0:02:26]}  Qxb5 {[%clk 0:02:54]} 17. Bh6 {[%clk 0:02:25]}  a5 {[%clk 0:02:39]} 18. Bxg7 {[%clk 0:02:24]}  Kxg7 {[%clk 0:02:39]} 19. Qd4+ {[%clk 0:02:21]}  f6 {[%clk 0:02:38]} 20. Ng5 {[%clk 0:02:20]}  Rfc8 {[%clk 0:01:49]} 21. Ne6+ {[%clk 0:02:18]}  Kh8 {[%clk 0:01:49]} 22. h4 {[%clk 0:02:06]}  Nd7 {[%clk 0:01:43]} 23. h5 {[%clk 0:02:05]}  Nf8 {[%clk 0:01:42]} 24. Nxf8 {[%clk 0:01:29]}  Rxf8 {[%clk 0:01:40]} 25. hxg6 {[%clk 0:01:26]}  hxg6 {[%clk 0:01:41]} 26. Re3 {[%clk 0:01:23]}  Kg7 {[%clk 0:01:38]} 27. Rh3 {[%clk 0:01:05]}  Rh8 {[%clk 0:01:35]} 28. Rxh8 {[%clk 0:01:05]}  Rxh8 {[%clk 0:01:35]} 29. Ra1 {[%clk 0:01:01]}  Qb4 {[%clk 0:01:02]} 30. g3 {[%clk 0:00:58]}  a4 {[%clk 0:00:39]} 31. Kg2 {[%clk 0:00:56]}  b5 {[%clk 0:00:27]} 32. Qa7 {[%clk 0:00:44]}  Rf8 {[%clk 0:00:18]} 33. Qxe7+ {[%clk 0:00:40]}  Rf7 {[%clk 0:00:18]} 34. Qe8 {[%clk 0:00:38]}  Rf8 {[%clk 0:00:09]} 35. Qe7+ {[%clk 0:00:37]}  Rf7 {[%clk 0:00:09]} 36. Qe8 {[%clk 0:00:34]}  Rf8 {[%clk 0:00:09]} 37. Qe7+ {[%clk 0:00:33]} 1/2-1/2


[Site "https://www.chess.com"]

[Event "Titled Tuesday Blitz December 7 2021"]
[White "Shkapenko, Pavel"]
[Black "Sviridov, Valery"]
[WhiteFideId "4151933"]
[BlackFideId "4120680"]
[WhiteElo "2386"]
[BlackElo "2454"]
[Result "1/2-1/2"]
[Round "09"]
[TimeControl "180+1"]
[Date "2021.12.07"]
[WhiteClock "0:00:05"]
[BlackClock "0:00:23"]

1. e4 {[%clk 0:02:56]}  e5 {[%clk 0:02:59]} 2. Nf3 {[%clk 0:02:54]}  Nc6 {[%clk 0:02:59]} 3. Bc4 {[%clk 0:02:54]}  Nf6 {[%clk 0:02:59]} 4. Ng5 {[%clk 0:02:53]}  d5 {[%clk 0:02:59]} 5. exd5 {[%clk 0:02:54]}  b5 {[%clk 0:02:58]} 6. Bf1 {[%clk 0:02:53]}  Nd4 {[%clk 0:02:57]} 7. c3 {[%clk 0:02:51]}  Nxd5 {[%clk 0:02:50]} 8. Ne4 {[%clk 0:02:50]}  Ne6 {[%clk 0:02:48]} 9. Bxb5+ {[%clk 0:02:50]}  Bd7 {[%clk 0:02:48]} 10. Bxd7+ {[%clk 0:02:50]}  Qxd7 {[%clk 0:02:49]} 11. d4 {[%clk 0:02:50]}  exd4 {[%clk 0:02:45]} 12. cxd4 {[%clk 0:02:50]}  Be7 {[%clk 0:02:46]} 13. O-O {[%clk 0:02:50]}  O-O {[%clk 0:02:47]} 14. Nbc3 {[%clk 0:02:47]}  Rab8 {[%clk 0:02:45]} 15. Re1 {[%clk 0:02:41]}  Rb4 {[%clk 0:02:44]} 16. Nxd5 {[%clk 0:02:39]}  Qxd5 {[%clk 0:02:43]} 17. Nc3 {[%clk 0:02:39]}  Qxd4 {[%clk 0:02:35]} 18. Qxd4 {[%clk 0:02:37]}  Rxd4 {[%clk 0:02:36]} 19. Be3 {[%clk 0:02:37]}  Rd7 {[%clk 0:02:34]} 20. Rad1 {[%clk 0:02:09]}  Rxd1 {[%clk 0:02:29]} 21. Rxd1 {[%clk 0:02:09]}  Bf6 {[%clk 0:02:30]} 22. Rc1 {[%clk 0:01:39]}  Rd8 {[%clk 0:02:26]} 23. Kf1 {[%clk 0:01:39]}  a6 {[%clk 0:02:22]} 24. Rc2 {[%clk 0:01:37]}  h5 {[%clk 0:02:18]} 25. Ne4 {[%clk 0:01:37]}  Be7 {[%clk 0:02:15]} 26. Rd2 {[%clk 0:01:20]}  Rb8 {[%clk 0:02:11]} 27. Nc3 {[%clk 0:01:14]}  Bf6 {[%clk 0:02:09]} 28. Ke2 {[%clk 0:00:58]}  Bxc3 {[%clk 0:02:08]} 29. bxc3 {[%clk 0:00:58]}  Kf8 {[%clk 0:02:05]} 30. Rd5 {[%clk 0:00:38]}  Rb2+ {[%clk 0:02:05]} 31. Rd2 {[%clk 0:00:38]}  Rb5 {[%clk 0:02:05]} 32. c4 {[%clk 0:00:36]}  Ra5 {[%clk 0:02:03]} 33. Kd3 {[%clk 0:00:30]}  Ra3+ {[%clk 0:02:03]} 34. Ke4 {[%clk 0:00:26]}  Ke7 {[%clk 0:02:04]} 35. h3 {[%clk 0:00:24]}  Rc3 {[%clk 0:02:00]} 36. Kd5 {[%clk 0:00:19]}  Kd7 {[%clk 0:02:01]} 37. g4 {[%clk 0:00:15]}  h4 {[%clk 0:01:59]} 38. c5 {[%clk 0:00:11]}  g6 {[%clk 0:01:53]} 39. Ke5+ {[%clk 0:00:11]}  Ke7 {[%clk 0:01:48]} 40. Kd5 {[%clk 0:00:11]}  f5 {[%clk 0:01:47]} 41. gxf5 {[%clk 0:00:10]}  gxf5 {[%clk 0:01:48]} 42. c6 {[%clk 0:00:10]}  f4 {[%clk 0:01:46]} 43. Ba7 {[%clk 0:00:10]}  Kf6 {[%clk 0:01:35]} 44. Re2 {[%clk 0:00:10]}  Rd3+ {[%clk 0:01:31]} 45. Ke4 {[%clk 0:00:09]}  Rxh3 {[%clk 0:01:32]} 46. Rd2 {[%clk 0:00:07]}  Rc3 {[%clk 0:01:30]} 47. Kd5 {[%clk 0:00:04]}  h3 {[%clk 0:01:27]} 48. Rd1 {[%clk 0:00:03]}  Rc2 {[%clk 0:01:26]} 49. Rh1 {[%clk 0:00:02]}  Rc3 {[%clk 0:01:24]} 50. Bd4+ {[%clk 0:00:01]}  Nxd4 {[%clk 0:01:24]} 51. Kxd4 {[%clk 0:00:02]}  Ra3 {[%clk 0:01:20]} 52. Ke4 {[%clk 0:00:02]}  Kg5 {[%clk 0:01:21]} 53. Rg1+ {[%clk 0:00:02]}  Kf6 {[%clk 0:01:14]} 54. Kxf4 {[%clk 0:00:02]}  Rxa2 {[%clk 0:01:14]} 55. Kg3 {[%clk 0:00:02]}  Ra3+ {[%clk 0:01:10]} 56. Kh2 {[%clk 0:00:02]}  Rc3 {[%clk 0:01:07]} 57. Rd1 {[%clk 0:00:01]}  Ke6 {[%clk 0:01:06]} 58. Ra1 {[%clk 0:00:01]}  Rxc6 {[%clk 0:01:06]} 59. Kxh3 {[%clk 0:00:02]}  Ke5 {[%clk 0:00:44]} 60. Kg3 {[%clk 0:00:02]}  Rg6+ {[%clk 0:00:43]} 61. Kf3 {[%clk 0:00:02]}  c5 {[%clk 0:00:41]} 62. Ke3 {[%clk 0:00:03]}  Kd5 {[%clk 0:00:38]} 63. Rd1+ {[%clk 0:00:03]}  Kc4 {[%clk 0:00:37]} 64. f4 {[%clk 0:00:03]}  Re6+ {[%clk 0:00:36]} 65. Kf3 {[%clk 0:00:03]}  a5 {[%clk 0:00:32]} 66. f5 {[%clk 0:00:04]}  Rc6 {[%clk 0:00:29]} 67. Ke4 {[%clk 0:00:03]}  a4 {[%clk 0:00:28]} 68. Rc1+ {[%clk 0:00:04]}  Kb4 {[%clk 0:00:27]} 69. Kd5 {[%clk 0:00:04]}  Rc8 {[%clk 0:00:20]} 70. Rb1+ {[%clk 0:00:03]}  Kc3 {[%clk 0:00:21]} 71. Rc1+ {[%clk 0:00:03]}  Kb2 {[%clk 0:00:20]} 72. Rxc5 {[%clk 0:00:03]}  Rd8+ {[%clk 0:00:18]} 73. Ke6 {[%clk 0:00:03]}  a3 {[%clk 0:00:19]} 74. Ra5 {[%clk 0:00:04]}  Re8+ {[%clk 0:00:19]} 75. Kf7 {[%clk 0:00:04]}  Re3 {[%clk 0:00:19]} 76. f6 {[%clk 0:00:04]}  a2 {[%clk 0:00:20]} 77. Rxa2+ {[%clk 0:00:04]}  Kxa2 {[%clk 0:00:21]} 78. Kg8 {[%clk 0:00:04]}  Rg3+ {[%clk 0:00:21]} 79. Kf8 {[%clk 0:00:04]}  Rf3 {[%clk 0:00:22]} 80. f7 {[%clk 0:00:05]}  Re3 {[%clk 0:00:22]} 81. Kg8 {[%clk 0:00:05]}  Rf3 {[%clk 0:00:23]} 82. f8=Q {[%clk 0:00:05]}  Rxf8+ {[%clk 0:00:23]} 83. Kxf8 {[%clk 0:00:05]} 1/2-1/2


[Site "https://www.chess.com"]

[Event "Titled Tuesday Blitz December 7 2021"]
[White "Shpanko, Nadiia"]
[Black "Dzhaparov, Medet"]
[WhiteFideId "14132400"]
[BlackFideId "13803689"]
[WhiteElo "2139"]
[BlackElo "1702"]
[Result "1/2-1/2"]
[Round "09"]
[TimeControl "180+1"]
[Date "2021.12.07"]
[WhiteClock "0:00:06"]
[BlackClock "0:00:05"]

1. e4 {[%clk 0:03:00]}  e5 {[%clk 0:02:59]} 2. Nf3 {[%clk 0:02:59]}  Nc6 {[%clk 0:02:56]} 3. Nc3 {[%clk 0:02:59]}  Nf6 {[%clk 0:02:53]} 4. d4 {[%clk 0:02:57]}  exd4 {[%clk 0:02:53]} 5. Nxd4 {[%clk 0:02:57]}  Nxe4 {[%clk 0:02:53]} 6. Nxc6 {[%clk 0:02:35]}  Nxc3 {[%clk 0:02:46]} 7. Nxd8 {[%clk 0:02:17]}  Nxd1 {[%clk 0:02:45]} 8. Nxf7 {[%clk 0:02:17]}  Kxf7 {[%clk 0:02:25]} 9. Bc4+ {[%clk 0:02:05]}  Kf6 {[%clk 0:02:25]} 10. Kxd1 {[%clk 0:02:05]}  Bc5 {[%clk 0:02:24]} 11. Be3 {[%clk 0:01:51]}  Bxe3 {[%clk 0:02:21]} 12. fxe3 {[%clk 0:01:52]}  d5 {[%clk 0:02:21]} 13. Bd3 {[%clk 0:01:46]}  Be6 {[%clk 0:02:19]} 14. Rf1+ {[%clk 0:01:40]}  Ke5 {[%clk 0:02:19]} 15. Kd2 {[%clk 0:01:39]}  Raf8 {[%clk 0:02:15]} 16. c3 {[%clk 0:01:29]}  g6 {[%clk 0:02:15]} 17. g3 {[%clk 0:01:25]}  Bh3 {[%clk 0:02:13]} 18. Rf4 {[%clk 0:01:25]}  g5 {[%clk 0:02:10]} 19. Rxf8 {[%clk 0:01:19]}  Rxf8 {[%clk 0:02:11]} 20. Ke2 {[%clk 0:01:17]}  Bg4+ {[%clk 0:02:04]} 21. Ke1 {[%clk 0:01:16]}  Rf3 {[%clk 0:02:04]} 22. Bxh7 {[%clk 0:01:09]}  Rxe3+ {[%clk 0:02:04]} 23. Kf1 {[%clk 0:01:05]}  c5 {[%clk 0:01:11]} 24. Re1 {[%clk 0:00:59]}  Rxe1+ {[%clk 0:00:53]} 25. Kxe1 {[%clk 0:00:58]}  d4 {[%clk 0:00:50]} 26. Kd2 {[%clk 0:00:54]}  b5 {[%clk 0:00:43]} 27. h4 {[%clk 0:00:50]}  gxh4 {[%clk 0:00:41]} 28. gxh4 {[%clk 0:00:51]}  Bh5 {[%clk 0:00:39]} 29. Bd3 {[%clk 0:00:43]}  c4 {[%clk 0:00:37]} 30. cxd4+ {[%clk 0:00:43]}  Kxd4 {[%clk 0:00:36]} 31. Bf1 {[%clk 0:00:40]}  b4 {[%clk 0:00:32]} 32. Bg2 {[%clk 0:00:29]}  a5 {[%clk 0:00:26]} 33. Bc6 {[%clk 0:00:25]}  c3+ {[%clk 0:00:17]} 34. bxc3+ {[%clk 0:00:24]}  bxc3+ {[%clk 0:00:17]} 35. Kc1 {[%clk 0:00:24]}  Kc4 {[%clk 0:00:12]} 36. Ba4 {[%clk 0:00:24]}  Kb4 {[%clk 0:00:12]} 37. Bb3 {[%clk 0:00:23]}  a4 {[%clk 0:00:12]} 38. Be6 {[%clk 0:00:22]}  Kc5 {[%clk 0:00:12]} 39. Kc2 {[%clk 0:00:21]}  Kd4 {[%clk 0:00:12]} 40. Bf5 {[%clk 0:00:21]}  a3 {[%clk 0:00:10]} 41. Kb3 {[%clk 0:00:18]}  Bd1+ {[%clk 0:00:09]} 42. Kxa3 {[%clk 0:00:17]}  Ke3 {[%clk 0:00:09]} 43. Bg6 {[%clk 0:00:14]}  Kd2 {[%clk 0:00:08]} 44. Kb4 {[%clk 0:00:12]}  Bc2 {[%clk 0:00:07]} 45. Bh5 {[%clk 0:00:10]}  Bd3 {[%clk 0:00:07]} 46. Bd1 {[%clk 0:00:06]}  Bg6 {[%clk 0:00:03]} 47. Bb3 {[%clk 0:00:05]}  c2 {[%clk 0:00:03]} 48. Bxc2 {[%clk 0:00:05]}  Kxc2 {[%clk 0:00:03]} 49. a4 {[%clk 0:00:05]}  Kd2 {[%clk 0:00:02]} 50. a5 {[%clk 0:00:05]}  Ke3 {[%clk 0:00:03]} 51. a6 {[%clk 0:00:06]}  Kf4 {[%clk 0:00:03]} 52. a7 {[%clk 0:00:05]}  Be4 {[%clk 0:00:04]} 53. h5 {[%clk 0:00:05]}  Kg5 {[%clk 0:00:04]} 54. h6 {[%clk 0:00:06]}  Kxh6 {[%clk 0:00:04]} 55. a8=Q {[%clk 0:00:06]}  Bxa8 {[%clk 0:00:05]} 1/2-1/2


[Site "https://www.chess.com"]

[Event "Titled Tuesday Blitz December 7 2021"]
[White "Sinitsina, Anastassia"]
[Black "Gubsky, Egor"]
[WhiteFideId "4504640"]
[BlackFideId "4194055"]
[WhiteElo "2161"]
[BlackElo "2258"]
[Result "1/2-1/2"]
[Round "09"]
[TimeControl "180+1"]
[Date "2021.12.07"]
[WhiteClock "0:00:10"]
[BlackClock "0:00:07"]

1. Nf3 {[%clk 0:03:00]}  Nf6 {[%clk 0:02:58]} 2. g3 {[%clk 0:03:01]}  b6 {[%clk 0:02:58]} 3. Bg2 {[%clk 0:03:01]}  Bb7 {[%clk 0:02:59]} 4. O-O {[%clk 0:03:01]}  e6 {[%clk 0:02:59]} 5. d3 {[%clk 0:03:02]}  d5 {[%clk 0:02:58]} 6. Nbd2 {[%clk 0:03:02]}  c5 {[%clk 0:02:56]} 7. c3 {[%clk 0:03:02]}  Be7 {[%clk 0:02:56]} 8. a3 {[%clk 0:03:02]}  O-O {[%clk 0:02:56]} 9. b4 {[%clk 0:03:02]}  a5 {[%clk 0:02:50]} 10. b5 {[%clk 0:03:00]}  Nbd7 {[%clk 0:02:48]} 11. Bb2 {[%clk 0:03:00]}  e5 {[%clk 0:02:41]} 12. c4 {[%clk 0:02:58]}  d4 {[%clk 0:02:41]} 13. Re1 {[%clk 0:02:32]}  e4 {[%clk 0:02:36]} 14. Ng5 {[%clk 0:02:29]}  Ne8 {[%clk 0:02:11]} 15. Ngxe4 {[%clk 0:02:27]}  f5 {[%clk 0:02:07]} 16. Nf6+ {[%clk 0:02:23]}  Nexf6 {[%clk 0:02:07]} 17. Bxb7 {[%clk 0:02:23]}  Ra7 {[%clk 0:02:08]} 18. Bg2 {[%clk 0:02:22]}  Bd6 {[%clk 0:02:05]} 19. Nf3 {[%clk 0:02:21]}  f4 {[%clk 0:02:02]} 20. Ng5 {[%clk 0:02:18]}  Qe8 {[%clk 0:01:57]} 21. Bc1 {[%clk 0:01:58]}  h6 {[%clk 0:01:44]} 22. Ne4 {[%clk 0:01:55]}  Nxe4 {[%clk 0:01:36]} 23. dxe4 {[%clk 0:01:53]}  fxg3 {[%clk 0:01:37]} 24. hxg3 {[%clk 0:01:53]}  Qf7 {[%clk 0:01:34]} 25. f4 {[%clk 0:01:46]}  Qxc4 {[%clk 0:01:31]} 26. e5 {[%clk 0:01:42]}  Nxe5 {[%clk 0:01:25]} 27. fxe5 {[%clk 0:01:40]}  Bxe5 {[%clk 0:01:26]} 28. Qd3 {[%clk 0:01:39]}  Qe6 {[%clk 0:01:13]} 29. Qe4 {[%clk 0:01:34]}  Kh8 {[%clk 0:00:58]} 30. Bf4 {[%clk 0:01:29]}  Re7 {[%clk 0:00:46]} 31. Bxe5 {[%clk 0:01:26]}  Qxe5 {[%clk 0:00:47]} 32. Qxe5 {[%clk 0:01:26]}  Rxe5 {[%clk 0:00:48]} 33. Bf3 {[%clk 0:01:24]}  c4 {[%clk 0:00:39]} 34. Rad1 {[%clk 0:01:16]}  d3 {[%clk 0:00:39]} 35. Kf2 {[%clk 0:01:12]}  g5 {[%clk 0:00:27]} 36. g4 {[%clk 0:01:06]}  Re4 {[%clk 0:00:18]} 37. exd3 {[%clk 0:01:03]}  Rxg4 {[%clk 0:00:18]} 38. Re6 {[%clk 0:00:59]}  Rgf4 {[%clk 0:00:18]} 39. Rxh6+ {[%clk 0:00:53]}  Kg7 {[%clk 0:00:18]} 40. Rh3 {[%clk 0:00:50]}  g4 {[%clk 0:00:19]} 41. Rg1 {[%clk 0:00:42]}  Rxf3+ {[%clk 0:00:19]} 42. Rxf3 {[%clk 0:00:41]}  Rxf3+ {[%clk 0:00:20]} 43. Ke1 {[%clk 0:00:39]}  Re3+ {[%clk 0:00:21]} 44. Kf2 {[%clk 0:00:37]}  Rf3+ {[%clk 0:00:21]} 45. Ke1 {[%clk 0:00:36]}  Re3+ {[%clk 0:00:20]} 46. Kf2 {[%clk 0:00:36]}  Rxd3 {[%clk 0:00:10]} 47. Rxg4+ {[%clk 0:00:36]}  Kf7 {[%clk 0:00:10]} 48. Rxc4 {[%clk 0:00:36]}  Rxa3 {[%clk 0:00:05]} 49. Rc6 {[%clk 0:00:35]}  Rb3 {[%clk 0:00:05]} 50. Rxb6 {[%clk 0:00:35]}  Ke7 {[%clk 0:00:05]} 51. Ke2 {[%clk 0:00:34]}  Kd7 {[%clk 0:00:06]} 52. Kd2 {[%clk 0:00:31]}  Kc7 {[%clk 0:00:06]} 53. Rc6+ {[%clk 0:00:32]}  Kb7 {[%clk 0:00:06]} 54. Rc5 {[%clk 0:00:30]}  Kb6 {[%clk 0:00:07]} 55. Rh5 {[%clk 0:00:30]}  Rg3 {[%clk 0:00:07]} 56. Kc2 {[%clk 0:00:28]}  a4 {[%clk 0:00:08]} 57. Kb2 {[%clk 0:00:28]}  Ka5 {[%clk 0:00:09]} 58. Ka2 {[%clk 0:00:25]}  Rg2+ {[%clk 0:00:09]} 59. Ka3 {[%clk 0:00:25]}  Rg3+ {[%clk 0:00:10]} 60. Ka2 {[%clk 0:00:25]}  Rb3 {[%clk 0:00:08]} 61. Rg5 {[%clk 0:00:25]}  Rb4 {[%clk 0:00:07]} 62. Ka3 {[%clk 0:00:24]}  Rb3+ {[%clk 0:00:08]} 63. Ka2 {[%clk 0:00:24]}  Rh3 {[%clk 0:00:09]} 64. Rf5 {[%clk 0:00:23]}  Kb4 {[%clk 0:00:09]} 65. b6 {[%clk 0:00:21]}  Rh2+ {[%clk 0:00:09]} 66. Kb1 {[%clk 0:00:20]}  Rh1+ {[%clk 0:00:10]} 67. Ka2 {[%clk 0:00:21]}  Rh2+ {[%clk 0:00:11]} 68. Kb1 {[%clk 0:00:21]}  a3 {[%clk 0:00:09]} 69. b7 {[%clk 0:00:18]}  Rb2+ {[%clk 0:00:09]} 70. Ka1 {[%clk 0:00:17]}  Ka4 {[%clk 0:00:09]} 71. Rf7 {[%clk 0:00:14]}  Rb6 {[%clk 0:00:07]} 72. Re7 {[%clk 0:00:12]}  Ka5 {[%clk 0:00:07]} 73. Rd7 {[%clk 0:00:10]}  Ka6 {[%clk 0:00:07]} 74. Ka2 {[%clk 0:00:10]}  Rb2+ {[%clk 0:00:05]} 75. Kxa3 {[%clk 0:00:10]}  Rxb7 {[%clk 0:00:06]} 76. Rxb7 {[%clk 0:00:10]}  Kxb7 {[%clk 0:00:07]} 1/2-1/2


[Site "https://www.chess.com"]